fUSD/lending_fUSD_20240609
["ID","MTS","AMOUNT","RATE_DAILY","PERIOD"]
[328859019,1717891845045,-500.0,0.00029999,4]
[328859020,1717891845055,-500.0,0.00029999,4]
[328859021,1717891845065,-500.0,0.00029999,4]
[328859022,1717891845075,-415.09,0.00029999,4]
[328859023,1717891845086,-500.0,0.00029999,4]
[328859024,1717891845096,-500.0,0.00029999,4]
[328859025,1717891845106,-444.07,0.00029999,4]
[328859026,1717891845116,-500.0,0.00029999,4]
[328859027,1717891845126,-500.0,0.00029999,4]
[328859028,1717891845136,-500.0,0.00029999,4]
[328859029,1717891845146,-500.0,0.00029999,4]
[328859030,1717891845156,-500.0,0.00029999,4]
[328859031,1717891845166,-500.0,0.00029999,4]
[328859032,1717891845175,-456.0,0.00029999,4]
[328859033,1717891845184,-500.0,0.00029999,4]
[328859034,1717891845194,-500.0,0.00029999,4]
[328859035,1717891845203,-500.0,0.00029999,4]
[328859036,1717891845214,-500.0,0.00029999,4]
[328859037,1717891845224,-500.0,0.00029999,4]
[328859038,1717891845234,-500.0,0.00029999,4]
[328859039,1717891845246,-500.0,0.00029999,4]
[328859040,1717891845256,-500.0,0.00029999,4]
[328859041,1717891845266,-500.0,0.00029999,4]
[328859042,1717891845276,-500.0,0.00029999,4]
[328859043,1717891845286,-500.0,0.00029999,4]
[328859044,1717891845296,-500.0,0.00029999,4]
[328859045,1717891845306,-500.0,0.00029999,4]
[328859046,1717891845316,-500.0,0.00029999,4]
[328859047,1717891845326,-500.0,0.00029999,4]
[328859048,1717891845336,-500.0,0.00029999,4]
[328859049,1717891845345,-500.0,0.00029999,4]
[328859050,1717891845355,-500.0,0.00029999,4]
[328859051,1717891845365,-500.0,0.00029999,4]
[328859052,1717891845375,-500.0,0.00029999,4]
[328859053,1717891845385,-600.75,0.00029999,4]
[328859054,1717891845396,-127909.793593,0.0003,13]
[328859055,1717891845412,-94435.1859797,0.0003,13]
[328859056,1717891845424,-120571.68465099,0.0003,13]
[328859057,1717891845450,-40878.49580362,0.0003,13]
[328859058,1717891845462,-7569.79999997,0.0003,13]
[328859059,1717891845478,-80015.82945995,0.0003,13]
[328859060,1717891845490,-20465.99671025,0.0003,13]
[328859061,1717891845503,-1226.20000015,0.0003,13]
[328859062,1717891845515,-658.35,0.0003,13]
[328859075,1717891846407,-2433.74939738,0.00029233,15]
[328859076,1717891846417,-1044.43528089,0.00029998,2]
[328859077,1717891846428,-649.53295488,0.00029998,2]
[328859078,1717891846438,-411.39094581,0.00029998,2]
[328859079,1717891846449,-58375.70718674,0.0003,13]
[328859080,1717891846459,-214.93750843,0.0003,5]
[328859081,1717891846470,-150.0,0.0003,5]
[328859082,1717891846480,-9104.83064857,0.0003,2]
[328859083,1717891846582,-10708.97917367,0.0003,2]
[328859084,1717891846643,-393.76878671,0.0003,2]
[328859085,1717891846799,-483.87719183,0.0003,2]
[328859086,1717891846821,-2550.53219726,0.0003,2]
[328859087,1717891846918,-502.60065478,0.0003,2]
[328859088,1717891847011,-155.0,0.00029999,2]
[328859089,1717891847021,-151.21779093,0.0003,2]
[328859090,1717891847064,-5.88e-06,0.0003,2]
[328859091,1717891847076,-276.1093452,0.0003,2]
[328859092,1717891847105,-12817.39067802,0.0003,2]
[328859093,1717891847195,-1000.83004493,0.0003,2]
[328859094,1717891847212,-905.72771757,0.0003,2]
[328859105,1717893033635,-300.0,0.00017056,2]
[328859106,1717893033645,-210.30135476,0.00019525,2]
[328859107,1717893033656,-215.10652378,0.00019625,2]
[328859108,1717893033667,-150.0,0.00019725,2]
[328859109,1717893033677,-11424.1879,0.000199,2]
[328859110,1717893033687,-362.77,0.000199,2]
[328859111,1717893033697,-499.99,0.000199,2]
[328859112,1717893033708,-1011.26866877,0.0002,2]
[328859113,1717893033719,-864.62751791,0.0002,2]
[328859114,1717893033729,-893.12,0.0002438,2]
[328859115,1717893033739,-181.77,0.00024381,2]
[328859116,1717893033749,-302.35,0.00024384,2]
[328859117,1717893033759,-157.27,0.00024384,2]
[328859118,1717893033769,-489.65,0.00025354,2]
[328859119,1717893033779,-150.78181351,0.00026355,2]
[328859120,1717893033789,-7566.74631643,0.00027308,2]
[328859121,1717893033803,-4473.09368357,0.00027308,2]
[328859122,1717893033813,-250.0,0.0002736,2]
[328859123,1717893033823,-160.38,0.00027371,2]
[328859124,1717893033833,-807.52617473,0.0002739,2]
[328859125,1717893033843,-177.36,0.00027397,2]
[328859126,1717893033852,-150.0,0.00027417,2]
[328859127,1717893033862,-194.85,0.00027555,2]
[328859128,1717893033872,-166.31,0.00027577,2]
[328859129,1717893033881,-250.0,0.00027614,2]
[328859130,1717893033891,-489.65,0.00027618,2]
[328859131,1717893033900,-250.0,0.00027627,2]
[328859132,1717893033910,-184.72,0.00027668,2]
[328859133,1717893033920,-165.91,0.00027705,2]
[328859135,1717893033930,-165.26333453,0.00027899,2]
[328859137,1717893033940,-1500.0,0.000279,2]
[328859139,1717893033949,-236.91,0.00027983,2]
[328859140,1717893033959,-150.0,0.00028149,2]
[328859142,1717893033969,-500.0,0.00028374,2]
[328859144,1717893033978,-1734.70807924,0.00028724,30]
[328859146,1717893033988,-1000.0,0.00028818,2]
[328859149,1717893033998,-150.0,0.00028881,2]
[328859151,1717893034008,-169.01670737,0.00028967,2]
[328859152,1717893034018,-167.31,0.00029108,2]
[328859154,1717893034028,-184.89,0.00029363,10]
[328859156,1717893034039,-154.08,0.00029363,10]
[328859158,1717893034050,-878.9394,0.00029373,2]
[328859160,1717893034059,-1335.81644521,0.00029373,2]
[328859163,1717893034072,-4390.04250886,0.00029373,2]
[328859196,1717893038733,-1145.04372481,0.00029373,2]
[328859237,1717893041226,-500.0,0.00029373,2]
[328859320,1717893042965,-1975.9160825,0.00029373,2]
[328859408,1717893044003,-321.04844497,0.00029373,2]
[328859425,1717893044205,-1200.29386487,0.00029373,2]
[328859430,1717893044494,-396.321,0.00029373,2]
[328859433,1717893044507,-437.18,0.00029373,2]
[328859436,1717893044610,-9367.57070698,0.00029373,2]
[328859437,1717893044625,-1968.5006613,0.00029373,2]
[328859438,1717893044638,-2986.16973733,0.00029373,2]
[328859439,1717893044750,-878.9393226,0.00029373,2]
[328859447,1717893046943,-437.29,0.00029373,2]
[328859448,1717893047214,-437.73929513,0.00029373,2]
[328859449,1717893047601,-1415.7546308,0.00029373,2]
[328859450,1717893047614,-819.14011474,0.00029373,2]
[328859453,1717893115747,-1033.190845,0.0003,120]
[328859457,1717893223869,80282.36804168,0.00014,2]
[328859458,1717893244986,312.63330423,0.000118,2]
[328859460,1717893398258,59430.12919946,0.00015,2]
[328859462,1717894145059,23663.80392701,0.00015,2]
[328859463,1717894213339,437.04924005,0.00015991,2]
[328859473,1717894231745,-481.85167187,0.00016088,2]
[328859474,1717894231756,-1000.0,0.00016089,2]
[328859475,1717894231766,-334.11654463,0.0001609,2]
[328859476,1717894231777,-8418.92102661,0.0001609,2]
[328859477,1717894231789,-155.0,0.00016091,2]
[328859478,1717894231799,-327.93122394,0.00016091,2]
[328859479,1717894231811,-253.30899809,0.00016091,2]
[328859480,1717894231820,-150.0,0.00016199,2]
[328859481,1717894231830,-150.0,0.00016199,2]
[328859482,1717894231841,-3900.5726,0.00016201,2]
[328859483,1717894231852,-150.0,0.00016384,2]
[328859484,1717894231863,-1489.78467668,0.00016738,2]
[328859485,1717894231874,-525.24750184,0.00016946,2]
[328859486,1717894231885,-499.99,0.00016946,2]
[328859487,1717894231897,-452.35584505,0.0001695,2]
[328859488,1717894231908,-300.0,0.00016956,2]
[328859489,1717894231920,-6247.99876781,0.00017259,2]
[328859490,1717894231931,-210.0,0.00017819,2]
[328859491,1717894231944,-210.0,0.00017819,2]
[328859492,1717894231954,-411.70823499,0.00019451,2]
[328859493,1717894231963,-187.50211411,0.0002,2]
[328859494,1717894231976,-155.0,0.0002,2]
[328859495,1717894231988,-1011.26866877,0.0002,2]
[328859496,1717894231999,-155.0,0.00020996,2]
[328859497,1717894232011,-2000.0,0.00021,2]
[328859498,1717894232025,-3901.653943,0.0002101,2]
[328859499,1717894232036,-790.3667753,0.0002202,2]
[328859500,1717894232045,-597.92,0.00022021,2]
[328859501,1717894232056,-2448.0,0.000221,2]
[328859502,1717894232066,-188.839,0.00022137,2]
[328859503,1717894232077,-197.514,0.00022137,2]
[328859504,1717894232087,-1034.0,0.00022137,2]
[328859505,1717894232097,-500.0,0.00022602,2]
[328859506,1717894232107,-500.0,0.00022602,2]
[328859507,1717894232117,-200.0,0.0002342,2]
[328859508,1717894232128,-250.0,0.00023474,2]
[328859509,1717894232140,-250.0,0.00023474,2]
[328859510,1717894232150,-22763.92,0.00023522,2]
[328859511,1717894232160,-250.0,0.00023534,2]
[328859512,1717894232170,-291.38,0.00023647,2]
[328859513,1717894232180,-200.0,0.00023657,2]
[328859514,1717894232190,-500.0,0.00023698,2]
[328859515,1717894232200,-500.0,0.00023698,2]
[328859516,1717894232210,-1000.0,0.00023816,2]
[328859517,1717894232220,-368.23,0.00023877,2]
[328859518,1717894232230,-910.27,0.00023973,2]
[328859519,1717894232240,-666.83,0.00023974,2]
[328859520,1717894232250,-1236.66,0.00024191,2]
[328859521,1717894232260,-166.31,0.00024191,2]
[328859522,1717894232270,-500.0,0.00024213,2]
[328859523,1717894232280,-597.92,0.00024285,2]
[328859524,1717894232290,-169.98,0.00024361,2]
[328859525,1717894232300,-175.94,0.00024384,2]
[328859526,1717894232310,-160.43,0.00024384,2]
[328859527,1717894232319,-232.61,0.00024658,2]
[328859528,1717894232329,-500.0,0.00024794,2]
[328859529,1717894232339,-500.0,0.00024794,2]
[328859530,1717894232350,-1250.0,0.00025,2]
[328859531,1717894232360,-155.0,0.00025,2]
[328859532,1717894232371,-1276.67123089,0.00025016,2]
[328859533,1717894232381,-234.1,0.00025017,2]
[328859534,1717894232391,-1000.0,0.00025205,2]
[328859535,1717894232402,-500.0,0.0002589,2]
[328859536,1717894232413,-500.0,0.0002589,2]
[328859537,1717894232423,-167.0,0.0002603,2]
[328859538,1717894232435,-156.4795302,0.00026149,2]
[328859539,1717894232444,-155.20432982,0.00026272,2]
[328859540,1717894232454,-180.0,0.000263,2]
[328859541,1717894232463,-159.00521825,0.0002631,2]
[328859542,1717894232472,-158.50014379,0.00026311,2]
[328859543,1717894232482,-152.90366049,0.00026359,2]
[328859544,1717894232491,-234.1,0.00026387,2]
[328859545,1717894232500,-679.85142557,0.000264,2]
[328859546,1717894232510,-597.92,0.00026549,2]
[328859547,1717894232521,-156.4795302,0.00026566,2]
[328859548,1717894232530,-158.50014379,0.00026573,2]
[328859549,1717894232540,-154.21432218,0.00026629,2]
[328859550,1717894232550,-156.4795302,0.00026665,2]
[328859551,1717894232560,-452.09796917,0.00026698,2]
[328859552,1717894232569,-800.0,0.00026712,2]
[328859553,1717894232579,-163.4585392,0.00026744,2]
[328859554,1717894232590,-1000.0,0.00026793,2]
[328859555,1717894232600,-152.90366049,0.00026863,2]
[328859556,1717894232611,-160.9760135,0.00026902,2]
[328859557,1717894232621,-158.50014379,0.0002692,2]
[328859558,1717894232632,-1236.66,0.00026931,2]
[328859559,1717894232642,-154.43087315,0.00026936,2]
[328859560,1717894232652,-154.87860239,0.00026979,2]
[328859561,1717894232662,-266.25369553,0.00026998,2]
[328859562,1717894232672,-1300.0,0.00027,2]
[328859563,1717894232682,-2000.0,0.00027,2]
[328859564,1717894232692,-3608.146528,0.0002701,2]
[328859565,1717894232702,-165.87406651,0.00027016,2]
[328859566,1717894232712,-156.4795302,0.00027028,2]
[328859567,1717894232722,-156.4795302,0.0002707,2]
[328859568,1717894232732,-154.21432218,0.0002714,2]
[328859569,1717894232742,-156.4795302,0.00027182,2]
[328859570,1717894232751,-800.0,0.0002726,2]
[328859571,1717894232761,-156.4795302,0.0002734,2]
[328859572,1717894232771,-154.87860239,0.00027347,2]
[328859573,1717894232781,-807.52617473,0.0002739,2]
[328859574,1717894232792,-150.0,0.00027397,2]
[328859575,1717894232802,-178.21,0.00027397,2]
[328859576,1717894232813,-770.41,0.00027397,10]
[328859577,1717894232823,-166.68931393,0.00027413,2]
[328859578,1717894232833,-167.0,0.00027462,2]
[328859579,1717894232843,-154.43087315,0.00027591,2]
[328859580,1717894232854,-156.4795302,0.00027626,2]
[328859581,1717894232865,-156.4795302,0.00027747,2]
[328859582,1717894232875,-18915.34152887,0.000279,10]
[328859583,1717894232885,-158.50014379,0.00027926,2]
[328859584,1717894232895,-156.4795302,0.00027927,2]
[328859585,1717894232905,-152.90366049,0.00027931,2]
[328859586,1717894232915,-154.87860239,0.00027934,2]
[328859587,1717894232925,-300.0,0.00028,2]
[328859588,1717894232939,-151.0,0.00028032,2]
[328859589,1717894232951,-150.0,0.00028118,2]
[328859590,1717894232961,-156.4795302,0.00028157,2]
[328859591,1717894232971,-152.90366049,0.00028242,2]
[328859592,1717894232982,-154.49581104,0.00028443,2]
[328859593,1717894232992,-159.00521825,0.00028492,2]
[328859594,1717894233002,-154.87860239,0.00028525,2]
[328859595,1717894233012,-165.87406651,0.00028575,2]
[328859596,1717894233024,-606.89,0.00028669,15]
[328859597,1717894233036,-606.89,0.00028669,15]
[328859598,1717894233045,-606.89,0.00028669,15]
[328859599,1717894233054,-606.89,0.00028669,15]
[328859600,1717894233064,-4435.00016026,0.000287,2]
[328859601,1717894233075,-2831.44033719,0.000287,2]
[328859602,1717894233086,-161.71082563,0.000287,2]
[328859603,1717894233096,-157.94005552,0.00028709,2]
[328859604,1717894233107,-154.87860239,0.00028778,2]
[328859605,1717894233117,-282.51332608,0.0002879,2]
[328859606,1717894233127,-151.9,0.0002879,2]
[328859607,1717894233137,-158.01,0.0002879,2]
[328859608,1717894233148,-158.01,0.0002879,2]
[328859609,1717894233158,-158.01,0.0002879,2]
[328859610,1717894233167,-158.01,0.0002879,2]
[328859611,1717894233176,-158.01,0.0002879,2]
[328859612,1717894233186,-158.01,0.0002879,2]
[328859613,1717894233196,-594848.55602143,0.000288,2]
[328859614,1717894233215,-14066.42892057,0.000288,2]
[328859615,1717894233234,-26853.44038272,0.000288,2]
[328859616,1717894233246,-5822.18862995,0.000288,2]
[328859617,1717894233257,-1671.1711544,0.000288,2]
[328859618,1717894233274,-930.68405402,0.000288,2]
[328859619,1717894233286,-24432.14589492,0.000288,2]
[328859620,1717894233298,-241301.20771128,0.000288,2]
[328859621,1717894233311,-16477.43359206,0.000288,2]
[328859622,1717894233328,-5954.73696904,0.000288,2]
[328859623,1717894233342,-7815.65406892,0.000288,2]
[328859624,1717894237248,947.71950495,0.00015991,2]
[328859629,1717894237580,-3140.10265864,0.000288,2]
[328859630,1717894237806,-14831.87003292,0.000288,2]
[328859731,1717894243208,-385.59024824,0.000288,2]
[328859732,1717894243638,-563.21663336,0.000288,2]
[328859738,1717894245206,-2139.35396276,0.000288,2]
[328859739,1717894245293,-6931.0,0.000288,2]
[328859740,1717894245382,-539.5041516,0.000288,2]
[328859745,1717894246161,-252.89515552,0.00028688,2]
[328859746,1717894246171,-8834.48950662,0.000288,2]
[328859747,1717894246545,-2732.29846574,0.000288,2]
[328859748,1717894246650,-4934.2742448,0.000288,2]
[328859750,1717894253191,157.77318835,0.00015991,2]
[328859752,1717894449339,5800.0,0.00013486,2]
[328859753,1717895063042,-2193.94401019,0.00016751,2]
[328859754,1717895063068,-1128.860903,0.00016752,2]
[328859755,1717895063098,-2337.19508681,0.00016836,2]
[328859757,1717895218830,562.2227426,0.00015,4]
[328859774,1717895432364,-152.7311328,0.00016604,2]
[328859775,1717895432374,-532.8007569,0.00016701,2]
[328859776,1717895432459,-467.1992431,0.00016701,2]
[328859777,1717895432470,-155.0,0.00016702,2]
[328859778,1717895432480,-327.93122394,0.00016703,2]
[328859779,1717895432489,-586.32577587,0.00016703,2]
[328859780,1717895432502,-308.14008547,0.00016703,2]
[328859781,1717895432515,-339.85299,0.00016703,2]
[328859782,1717895432530,-1783.8030785,0.00016703,2]
[328859783,1717895432542,-545.65347238,0.00016704,2]
[328859784,1717895432553,-1489.78467668,0.00016704,2]
[328859785,1717895432563,-525.24750184,0.00016705,2]
[328859786,1717895432573,-155.0,0.00016705,2]
[328859787,1717895432583,-155.0,0.00016705,2]
[328859788,1717895432593,-949.04817961,0.00016706,2]
[328859789,1717895432614,-496.59800559,0.00016706,2]
[328859790,1717895432626,-730.35536255,0.00016706,2]
[328859791,1717895432794,-562.43544538,0.00016706,2]
[328859792,1717895432807,-647.33260389,0.00016706,2]
[328859793,1717895432817,-150.0,0.00016711,2]
[328859794,1717895432827,-150.0,0.00016711,2]
[328859795,1717895432837,-147.5576712,0.00016725,2]
[328859796,1717895432850,-264.37658424,0.00016725,2]
[328859797,1717895432862,-875.59927975,0.00016725,2]
[328859798,1717895432874,-212.46646481,0.00016725,2]
[328859800,1717895432884,-210.11974694,0.00017,2]
[328859802,1717895432895,-210.11974693,0.00017,2]
[328859804,1717895432905,-499.99,0.00017259,2]
[328859806,1717895432915,-210.0,0.00018382,2]
[328859808,1717895432926,-210.0,0.00018382,2]
[328859810,1717895432935,-411.70823499,0.00019,2]
[328859812,1717895432945,-155.0,0.00019198,2]
[328859814,1717895432955,-3892.44824461,0.000192,2]
[328859816,1717895432966,-300.0,0.000198,2]
[328859818,1717895432976,-549.30032419,0.0002,2]
[328859820,1717895432986,-187.50211411,0.0002,2]
[328859822,1717895432996,-155.0,0.0002,2]
[328859824,1717895433006,-226.64653432,0.000201,2]
[328859826,1717895433016,-155.0,0.00020818,2]
[328859828,1717895433027,-6260.95773304,0.00020819,2]
[328859830,1717895433036,-1011.26866877,0.0002082,2]
[328859832,1717895433047,-33.89692657,0.00020821,2]
[328859834,1717895433059,-3830.97007343,0.00020821,2]
[328859836,1717895433069,-670.67,0.00021136,2]
[328859838,1717895433079,-1000.0,0.000219,2]
[328859840,1717895433088,-790.3667753,0.00022,2]
[328859842,1717895433098,-162.311,0.00022137,2]
[328859844,1717895433107,-440.0,0.00022137,2]
[328859845,1717895433117,-918.655,0.00022137,2]
[328859847,1717895433127,-340.869,0.00022137,2]
[328859848,1717895433137,-686.286,0.00022137,2]
[328859849,1717895433147,-2204.0,0.000222,2]
[328859850,1717895433157,-697.0,0.000222,2]
[328859851,1717895433167,-4242.95340713,0.00022592,2]
[328859852,1717895433178,-500.0,0.00022602,2]
[328859853,1717895433188,-500.0,0.00022602,2]
[328859854,1717895433198,-156.47869621,0.0002261,2]
[328859855,1717895433208,-166.31,0.00022902,2]
[328859856,1717895433218,-250.0,0.00022919,2]
[328859857,1717895433228,-200.0,0.00023072,2]
[328859858,1717895433238,-171.05,0.00023089,2]
[328859859,1717895433248,-400.0,0.00023118,2]
[328859860,1717895433257,-6.31601893,0.00023122,2]
[328859861,1717895433270,-243.68398107,0.00023122,2]
[328859863,1717895433280,-250.0,0.00023139,2]
[328859865,1717895433290,-155.0,0.00023211,2]
[328859867,1717895433301,-12388.73693893,0.00023213,2]
[328859870,1717895433329,-4543.48306107,0.00023213,2]
[328859872,1717895433339,-670.67,0.000234,2]
[328859874,1717895433349,-1378.56134213,0.00023459,2]
[328859876,1717895433361,-61.70865787,0.00023459,2]
[328859878,1717895433371,-291.37,0.00023483,2]
[328859880,1717895433384,-406.4,0.00023484,2]
[328859882,1717895433394,-196.45,0.00023533,2]
[328859884,1717895433405,-400.0,0.00023698,2]
[328859886,1717895433415,-200.0,0.00023698,2]
[328859888,1717895433427,-600.0,0.00024,2]
[328859890,1717895433436,-166.91,0.00024227,2]
[328859892,1717895433446,-252.66,0.00024334,2]
[328859894,1717895433455,-800.0,0.00024356,2]
[328859895,1717895433466,-154.1,0.00024384,2]
[328859896,1717895433476,-287.23,0.00024384,2]
[328859897,1717895433486,-166.91,0.00024407,2]
[328859898,1717895433496,-167.0,0.00024557,2]
[328859899,1717895433507,-114.45807463,0.00024587,2]
[328859900,1717895433519,-52.45192537,0.00024587,2]
[328859901,1717895433529,-868.0,0.000247,2]
[328859902,1717895433539,-166.91,0.00024768,2]
[328859903,1717895433549,-161.46550851,0.00024769,2]
[328859904,1717895433560,-1894.0534896,0.000249,2]
[328859905,1717895433573,-1389.15276,0.000249,2]
[328859926,1717895438383,-302.52178472,0.00016702,2]
[328859928,1717895438396,-10671.26209395,0.00016702,2]
[328859929,1717895438405,-1779.87597909,0.00020818,2]
[328859930,1717895438416,-3512.43735969,0.000249,2]
[328859931,1717895438426,-166.91,0.00024948,2]
[328859932,1717895438435,-1818.89461522,0.00024995,2]
[328859933,1717895438445,-4443.30606049,0.00024997,2]
[328859934,1717895438454,-209.45168018,0.00024998,2]
[328859935,1717895438463,-688.55362111,0.00024998,2]
[328859936,1717895438472,-930.15071455,0.00025,2]
[328859937,1717895438483,-155.0,0.00025,2]
[328859938,1717895438493,-1276.67123089,0.00025,2]
[328859939,1717895438503,-155.0,0.00025,2]
[328859940,1717895438513,-155.0,0.00025,2]
[328859941,1717895438523,-325.92553654,0.00025,2]
[328859942,1717895438533,-326.04313189,0.00025,2]
[328859943,1717895438543,-225.14837841,0.00025,2]
[328859944,1717895438556,-159.05442987,0.00025,2]
[328859945,1717895438566,-1250.0,0.00025,2]
[328859946,1717895438578,-257.823,0.00025026,2]
[328859947,1717895438589,-1205.6165,0.00025026,2]
[328859948,1717895438600,-2821.70654677,0.00025122,2]
[328859949,1717895438610,-436.45543559,0.00025123,2]
[328859950,1717895438620,-155.0,0.00025125,2]
[328859951,1717895438630,-166.91,0.00025128,2]
[328859952,1717895438641,-345.04,0.00025205,2]
[328859953,1717895438652,-166.91,0.00025309,2]
[328859954,1717895438663,-166.91,0.00025489,2]
[328859955,1717895438674,-670.67,0.00025664,2]
[328859956,1717895438685,-180.0,0.00025729,2]
[328859957,1717895438696,-163.37,0.0002589,2]
[328859958,1717895438706,-167.0,0.00025908,2]
[328859959,1717895438716,-5663.01483686,0.00025998,2]
[328859960,1717895438726,-3000.0,0.00026,2]
[328859961,1717895438735,-400.0,0.00026007,2]
[328859962,1717895438745,-155.27136512,0.00026197,2]
[328859963,1717895438754,-1440.27,0.00026199,2]
[328859964,1717895438763,-152.86879678,0.00026202,2]
[328859965,1717895438773,-155.18568225,0.00026234,2]
[328859966,1717895438782,-160.70890894,0.00026261,2]
[328859967,1717895438792,-155.27136512,0.00026366,2]
[328859968,1717895438801,-160.70890894,0.00026399,2]
[328859969,1717895438810,-155.27136512,0.00026423,2]
[328859970,1717895438819,-152.86879678,0.00026447,2]
[328859971,1717895438829,-155.18568225,0.00026455,2]
[328859972,1717895438839,-154.5961993,0.00026512,2]
[328859973,1717895438848,-154.5961993,0.00026517,2]
[328859974,1717895438858,-154.25401199,0.00026517,2]
[328859975,1717895438868,-152.86879678,0.00026534,2]
[328859976,1717895438879,-166.66666666,0.00026547,2]
[328859977,1717895438888,-154.5961993,0.00026569,2]
[328859978,1717895438899,-2056.17262383,0.000266,2]
[328859979,1717895438909,-154.55323405,0.00026634,2]
[328859980,1717895438920,-158.5001438,0.00026657,2]
[328859981,1717895438939,-800.0,0.00026658,2]
[328859982,1717895438949,-157.94005552,0.00026668,2]
[328859983,1717895438960,-154.37591946,0.00026704,2]
[328859984,1717895438971,-154.37591946,0.00026765,2]
[328859985,1717895438981,-154.5961993,0.00026796,2]
[328859986,1717895438992,-154.5961993,0.00026936,2]
[328859987,1717895439002,-600.0,0.00027,2]
[328859988,1717895439013,-4028.94618361,0.00027,2]
[328859989,1717895439024,-1300.0,0.00027,2]
[328859990,1717895439034,-150.000001,0.00027,2]
[328859991,1717895439044,-164.32334778,0.00027005,2]
[328859992,1717895439055,-154.5961993,0.0002702,2]
[328859993,1717895439067,-154.5961993,0.00027053,2]
[328859994,1717895439077,-154.54095258,0.00027085,2]
[328859995,1717895439088,-154.37591946,0.0002718,2]
[328859996,1717895439098,-160.70890894,0.00027222,2]
[328859997,1717895439108,-154.07598395,0.00027258,2]
[328859998,1717895439118,-167.0,0.00027259,2]
[328859999,1717895439128,-175.39914437,0.00027313,2]
[328860000,1717895439138,-800.0,0.0002737,2]
[328860001,1717895439149,-807.52617473,0.0002739,2]
[328860002,1717895439160,-177.15,0.00027397,2]
[328860003,1717895439171,-150.0,0.00027397,2]
[328860004,1717895439182,-868.0,0.000274,2]
[328860005,1717895439192,-154.5961993,0.00027481,2]
[328860006,1717895439418,-1000.0,0.000276,2]
[328860007,1717895439438,-154.07598395,0.00027649,2]
[328860008,1717895439450,-154.37591946,0.00027771,2]
[328860009,1717895439460,-154.5961993,0.00027778,2]
[328860010,1717895439471,-160.70890894,0.0002781,2]
[328860011,1717895439481,-154.07598395,0.00027845,2]
[328860012,1717895439492,-175.39914437,0.00027873,2]
[328860013,1717895439502,-155.27136512,0.00027874,2]
[328860014,1717895439513,-670.67,0.00027928,2]
[328860015,1717895439523,-155.18568225,0.00027969,2]
[328860016,1717895439533,-154.5961993,0.00027977,2]
[328860017,1717895439544,-155.27136512,0.00027981,2]
[328860018,1717895439555,-203.90071534,0.00027997,2]
[328860019,1717895439565,-468.83260483,0.00028,2]
[328860020,1717895439576,-154.5961993,0.00028005,2]
[328860021,1717895439585,-160.49438584,0.00028014,2]
[328860022,1717895439595,-151.0,0.00028032,2]
[328860023,1717895439605,-160.49438586,0.00028046,2]
[328860024,1717895439615,-416.3,0.00028082,2]
[328860025,1717895439626,-1745.66,0.00028082,2]
[328860026,1717895439636,-416.87,0.00028082,2]
[328860027,1717895439647,-850.48,0.00028082,2]
[328860028,1717895439657,-596.93,0.00028082,2]
[328860029,1717895439666,-356.22543517,0.00028082,2]
[328860030,1717895439815,-494.25456483,0.00028082,2]
[328860031,1717895439826,-732.52,0.00028082,2]
[328860032,1717895439836,-1489.99346692,0.00028097,2]
[328860033,1717895439846,-1757.66770349,0.00028104,2]
[328860034,1717895439858,-451.57864314,0.00028104,2]
[328860035,1717895439871,-254.99999,0.00028104,2]
[328860036,1717895439885,-101.24178968,0.00028104,2]
[328860037,1717895439895,-150.0,0.00028118,2]